bitfinex/quotes_SOLUSD_20250306
["timestamp","ask_amount","ask_price","bid_price","bid_amount"]
[1741226505603,1.77592039,147.85,147.73,278.97459017]
[1741226505933,1.77592039,147.85,147.75,19.07613357]
[1741226506114,1.77592039,147.85,147.75,25.84413357]
[1741226506316,78.96334787,147.86,147.75,25.84413357]
[1741226506636,78.99634787,147.87,147.75,241.64413357]
[1741226506817,1.77573735,147.86,147.77,0.14216157]
[1741226507013,78.96334787,147.85,147.76,0.14216157]
[1741226507208,20.0,147.81,147.76,0.28432314]
[1741226507407,20.0,147.8,147.78,0.14216157]
[1741226507622,100.73968468,147.79,147.72,81.33]
[1741226507840,78.96334787,147.78,147.72,0.03]
[1741226508015,20.0,147.74,147.72,0.03]
[1741226508516,1.77715149,147.73,147.67,81.3]
[1741226508716,20.0,147.73,147.67,81.3]
[1741226509225,6.3046,147.78,147.68,18.64964886]
[1741226509515,20.0,147.74,147.68,81.3]
[1741226509709,100.74062912,147.74,147.67,7.1]
[1741226509908,78.96334787,147.73,147.67,7.1]
[1741226510128,1.77750491,147.72,147.68,0.14216157]
[1741226510329,80.74085278,147.72,147.67,7.1]
[1741226510642,78.96334787,147.72,147.68,312.14216157]
[1741226511238,1.77742693,147.71,147.68,312.0]
[1741226511532,80.7407748,147.71,147.6,222.88]
[1741226511733,80.7407748,147.71,147.6,88.38]
[1741226511734,78.96334787,147.7,147.6,88.38]
[1741226511932,80.74140452,147.69,147.6,81.3]
[1741226512138,80.74140452,147.69,147.6,88.38]
[1741226512317,18.64964886,147.68,147.6,81.3]
[1741226512522,18.64964886,147.66,147.57,81.3]
[1741226512832,24.93084886,147.68,147.57,81.3]
[1741226512833,80.74189845,147.65,147.57,19.21829514]
[1741226513038,80.74189845,147.65,147.57,18.64964886]
[1741226513417,20.0,147.62,147.56,7.08]
[1741226513611,21.7785468,147.61,147.54,7.11]
[1741226514006,20.0,147.6,147.54,7.11]
[1741226514222,21.77889551,147.59,147.54,7.11]
[1741226514438,20.0,147.58,147.56,312.0]
[1741226514736,98.96334787,147.58,147.54,0.03]
[1741226514938,1.77931541,147.57,147.54,0.03]
[1741226515439,98.96334787,147.58,147.54,0.03]
[1741226516008,20.0,147.58,147.54,0.03]
[1741226516213,20.0,147.59,147.54,0.03]
[1741226516409,1.77892548,147.58,147.54,0.03]
[1741226517215,78.96334787,147.57,147.54,0.03]
[1741226517423,80.74262416,147.56,147.54,0.03]
[1741226517639,80.74262416,147.56,147.54,312.03]
[1741226518015,78.96334787,147.56,147.54,312.03]
[1741226518217,78.96334787,147.56,147.54,0.03]
[1741226518636,80.74276888,147.55,147.54,0.03]
[1741226518840,2.06374415,147.55,147.54,0.0001]
[1741226519115,99.733972,147.54,147.5,0.03]
[1741226519315,82.57996983,147.53,147.5,0.03]
[1741226520117,82.57996983,147.53,147.5,0.0001]
[1741226520318,18.933972,147.52,147.5,0.0001]
[1741226520548,101.51415871,147.51,147.5,0.0001]
[1741226520754,18.933972,147.5,147.45,0.03]
[1741226521048,20.0,147.46,147.45,0.0001]
[1741226521222,21.78080876,147.46,147.45,0.0001]
[1741226521425,20.0,147.46,147.45,0.0001]
[1741226521724,1.78034054,147.48,147.45,0.0001]
[1741226522122,1.78021946,147.49,147.45,0.0001]
[1741226522328,20.0,147.46,147.45,0.0001]
[1741226522531,21.78070873,147.46,147.45,0.0001]
[1741226522721,20.0,147.46,147.45,0.0001]
[1741226522921,0.28432314,147.51,147.45,0.0001]
[1741226523134,20.0,147.48,147.45,0.0001]
[1741226523337,0.28432314,147.46,147.45,0.0001]
[1741226523523,18.933972,147.46,147.45,0.0001]
[1741226523920,20.0,147.43,147.39,0.03]
[1741226524123,1.78120317,147.42,147.39,0.03]
[1741226524433,1.78120317,147.42,147.4,312.0]
[1741226524637,20.0,147.43,147.4,312.0]
[1741226526142,1.78089496,147.45,147.41,0.14216157]
[1741226526346,1.78054508,147.55,147.45,0.56864628]
[1741226526524,1.78054508,147.55,147.47,0.14216157]
[1741226526724,1.78054508,147.55,147.46,7.06]
[1741226526933,0.14216157,147.53,147.46,7.06]
[1741226527118,18.64964886,147.51,147.41,0.14216157]
[1741226527323,0.28432314,147.48,147.41,0.14216157]
[1741226527547,1.78068781,147.47,147.41,0.14216157]
[1741226527849,1.78068781,147.47,147.39,0.03]
[1741226528051,1.7804105,147.48,147.4,0.28432314]
[1741226528344,20.0,147.46,147.4,0.14216157]
[1741226528551,1.78076249,147.45,147.39,0.03]
[1741226528757,21.78076249,147.45,147.39,0.03]
[1741226529132,21.78076249,147.45,147.39,312.03]
[1741226529329,21.78076249,147.45,147.4,0.14216157]
[1741226529530,20.0,147.45,147.4,0.14216157]
[1741226529739,6.1482,147.48,147.42,0.28432314]
[1741226529740,1.7805096,147.48,147.42,0.28432314]
[1741226530052,20.0,147.51,147.42,0.28432314]
[1741226530258,1.7802604,147.5,147.43,0.42648471]
[1741226530447,1.7802604,147.53,147.45,0.28432314]
[1741226530656,1.7802604,147.53,147.45,7.34432314]
[1741226530948,20.0,147.48,147.45,7.20216157]
[1741226531148,1.78037865,147.47,147.39,0.17216157]
[1741226531557,20.0,147.43,147.39,0.03]
[1741226531737,1.78095487,147.42,147.39,0.03]
[1741226531943,80.8,147.41,147.35,0.03]
[1741226532255,82.58133303,147.4,147.35,0.03]
[1741226532469,0.28432314,147.39,147.35,0.03]
[1741226532766,1.78174223,147.38,147.35,312.03]
[1741226533056,0.42648471,147.44,147.35,312.03]
[1741226533360,1.78143297,147.43,147.35,312.03]
[1741226533757,19.07613357,147.42,147.34,0.03]
[1741226533967,1.78171799,147.41,147.34,0.03]
[1741226534172,1.78141388,147.48,147.35,0.28432314]
[1741226534467,1.78141388,147.48,147.35,18.933972]
[1741226534840,19.07613357,147.47,147.35,0.28432314]
[1741226535054,18.64964886,147.45,147.34,0.03]
[1741226535224,18.64964886,147.43,147.34,0.03]
[1741226535434,0.28432314,147.45,147.35,0.14216157]
[1741226535642,20.0,147.42,147.35,0.14216157]
[1741226535840,21.78123289,147.41,147.35,0.14216157]
[1741226536041,20.0,147.41,147.36,0.28432314]
[1741226536343,18.64964886,147.47,147.37,0.28432314]
[1741226536573,20.0,147.44,147.37,0.28432314]
[1741226536746,0.28432314,147.48,147.4,0.28432314]
[1741226536747,1.78065913,147.48,147.4,0.28432314]
[1741226536961,7.8555341,147.53,147.44,0.28432314]
[1741226537145,1.7803341,147.53,147.44,44.38277974]
[1741226537448,1.77975439,147.57,147.44,44.38277974]
[1741226537654,20.0,147.51,147.44,0.14216157]
[1741226537868,1.78011038,147.5,147.41,0.56864628]
[1741226538075,1.78010268,147.54,147.45,0.28432314]
[1741226538466,20.0,147.51,147.45,0.14216157]
[1741226538649,20.0,147.49,147.4,0.14216157]
[1741226538968,20.0,147.49,147.42,0.28432314]
[1741226539148,1.78044157,147.51,147.42,18.933972]
[1741226539350,0.42648471,147.55,147.42,18.933972]
[1741226539662,0.14216157,147.52,147.38,141.58]
[1741226539863,18.933972,147.5,147.38,7.08]
[1741226540067,0.7886308,147.56,147.4,44.0984566]
[1741226540268,1.92215792,147.55,147.48,0.14216157]
[1741226540452,0.28432314,147.54,147.48,0.14216157]
[1741226540656,1.77988187,147.53,147.48,0.14216157]
[1741226541056,1.7799104,147.57,147.48,0.14216157]
[1741226541368,1.7799104,147.57,147.48,0.28432314]
[1741226541871,1.7799104,147.57,147.48,0.14216157]
[1741226542043,0.14216157,147.55,147.48,0.14216157]
[1741226542249,18.933972,147.53,147.48,0.14216157]
[1741226542472,1.7799877,147.52,147.48,0.14216157]
[1741226542762,1.7799877,147.55,147.48,0.14216157]
[1741226542974,1.77953171,147.57,147.48,0.28432314]
[1741226543361,20.0,147.55,147.48,0.14216157]
[1741226543578,1.77951101,147.54,147.48,0.14216157]
[1741226544154,20.0,147.55,147.51,0.14216157]
[1741226544374,1.77932886,147.54,147.51,0.14216157]
[1741226544675,20.0,147.53,147.44,7.08]
[1741226544868,1.7799204,147.52,147.44,7.08]
[1741226545667,1.7799204,147.52,147.49,312.0]
[1741226545871,1.7799204,147.52,147.44,7.08]
[1741226546571,1.7799204,147.52,147.38,134.5]
[1741226546572,99.733972,147.51,147.4,81.3]
[1741226546772,80.8,147.5,147.45,0.14216157]
[1741226546949,0.28432314,147.55,147.45,0.14216157]
[1741226547145,82.57998368,147.54,147.45,0.14216157]
[1741226547364,80.8,147.53,147.47,0.14216157]
[1741226547566,80.8,147.56,147.48,0.14216157]
[1741226547773,82.57948449,147.56,147.48,0.14216157]
[1741226548572,0.033,147.57,147.52,0.14216157]
[1741226548749,0.033,147.57,147.53,63.17459017]
[1741226548952,0.033,147.57,147.55,19.07613357]
[1741226549150,0.033,147.57,147.55,100.37613357]
[1741226549567,0.033,147.57,147.55,81.44216157]
[1741226549769,0.033,147.57,147.56,0.14216157]
[1741226550363,0.033,147.57,147.56,312.28432314]
[1741226550558,0.033,147.57,147.56,412.51829514]
[1741226550763,80.8,147.66,147.56,466.19345174]
[1741226550959,80.8,147.71,147.62,0.56864628]
[1741226551152,80.8,147.71,147.64,0.14216157]
[1741226551353,80.8,147.71,147.64,19.21829514]
[1741226551553,7.82171808,147.76,147.64,19.21829514]
[1741226551753,7.82171808,147.76,147.66,0.14216157]
[1741226552283,7.82163961,147.81,147.68,0.14216157]
[1741226552489,7.82163961,147.81,147.68,19.07613357]
[1741226552968,18.64964886,147.8,147.68,19.07613357]
[1741226553172,20.0,147.77,147.68,19.07613357]
[1741226553374,1.77694389,147.79,147.7,0.42648471]
[1741226553555,1.77694389,147.79,147.7,19.07613357]
[1741226553760,20.0,147.78,147.7,19.07613357]
[1741226553963,1.77657394,147.85,147.75,0.28432314]
[1741226554178,1.80910001,147.84,147.75,18.933972]
[1741226554578,1.80910001,147.84,147.75,0.28432314]
[1741226554775,20.0,147.83,147.75,0.28432314]
[1741226554964,1.77641037,147.82,147.75,0.28432314]
[1741226555279,20.0,147.81,147.76,0.14216157]
[1741226555578,20.0,147.81,147.75,0.14216157]
[1741226555756,20.0,147.83,147.76,0.14216157]
[1741226555959,1.8092755,147.84,147.76,0.14216157]
[1741226556269,1.8092755,147.84,147.75,0.14216157]
[1741226556789,20.0,147.82,147.73,0.28432314]
[1741226556993,1.77651964,147.81,147.73,7.18216157]
[1741226557195,1.80945106,147.84,147.75,0.14216157]
[1741226557361,1.80945106,147.84,147.78,0.14216157]
[1741226558597,1.80945106,147.84,147.75,0.14216157]
[1741226559106,1.80945106,147.84,147.74,19.21829514]
[1741226559586,0.033,147.84,147.74,19.21829514]
[1741226560005,0.033,147.84,147.75,0.36937726]
[1741226560170,0.033,147.84,147.82,0.28432314]
[1741226560488,0.033,147.84,147.83,19.21829514]
[1741226560991,0.033,147.84,147.83,312.28432314]
[1741226562091,0.033,147.84,147.83,331.21829514]
[1741226563005,0.033,147.87,147.86,0.28432314]
[1741226563196,0.033,147.88,147.87,19.21829514]
[1741226563499,0.033,147.99,147.92,0.14216157]
[1741226563682,0.033,147.99,147.93,0.14216157]
[1741226563880,20.0,147.97,147.92,7.18216157]
[1741226564079,0.033,147.99,147.93,0.14216157]
[1741226564300,0.033,147.99,147.93,100.51829514]
[1741226564301,0.7104664,147.94,147.93,100.51829514]
[1741226564500,0.033,147.99,147.95,0.14216157]
[1741226564793,0.033,147.99,147.96,0.14216157]
[1741226565292,0.033,147.99,147.97,0.14216157]
[1741226566306,0.033,147.99,147.98,312.28432314]
[1741226566475,0.033,147.99,147.98,312.14216157]
[1741226566898,0.033,147.99,147.98,312.28432314]
[1741226568311,0.033,148.01,147.98,312.28432314]
[1741226568312,0.033,148.01,148.0,19.21829514]
[1741226568476,0.033,148.01,148.0,279.11675174]
[1741226568674,0.033,148.01,148.0,235.01829514]
[1741226569094,0.033,148.01,148.0,81.58432314]
[1741226569609,0.033,148.01,147.95,215.8]
[1741226569793,0.033,148.01,147.93,91.3398]
[1741226569971,0.033,148.01,147.94,18.64964886]
[1741226570177,0.033,148.01,147.99,0.56864628]
[1741226570708,0.033,148.01,147.99,0.28432314]
[1741226570904,0.033,148.01,147.99,0.14216157]
[1741226571483,0.033,148.02,148.01,0.56864628]
[1741226571799,1.80650172,148.09,148.01,0.56864628]
[1741226571800,0.033,148.09,148.08,0.56864628]
[1741226572005,0.033,148.09,148.08,19.21829514]
[1741226572384,0.033,148.09,148.08,235.01829514]
[1741226572579,0.033,148.09,148.08,279.11675174]
[1741226572905,0.033,148.13,148.08,279.11675174]
[1741226573288,0.033,148.13,148.1,0.28432314]
[1741226573606,0.033,148.13,148.1,44.38277974]
[1741226573799,0.033,148.15,148.14,20.42648471]
[1741226574102,0.033,148.15,148.14,299.11675174]
[1741226574601,0.033,148.15,148.14,255.01829514]
[1741226574803,0.033,148.15,148.14,81.58432314]
[1741226574984,0.033,148.15,148.14,393.58432314]
[1741226575177,0.033,148.15,148.14,312.28432314]
[1741226575508,0.033,148.15,148.1,120.76]
[1741226576393,0.033,148.15,148.11,0.14216157]
[1741226576601,1.80514629,148.15,148.1,120.76]
[1741226576984,1.80514629,148.15,148.11,0.14216157]
[1741226577479,1.80514629,148.15,148.03,134.5]
[1741226577678,18.64964886,148.14,148.02,20.0]
[1741226577879,1.77276232,148.14,148.03,19.21829514]
[1741226578302,1.77276232,148.14,148.05,19.21829514]
[1741226578523,1.77276232,148.14,148.05,18.933972]
[1741226578705,80.8,148.13,148.04,312.0]
[1741226578890,18.966972,148.15,148.04,312.0]
[1741226578891,1.77287712,148.12,148.04,312.0]
[1741226579211,0.28432314,148.14,147.98,3.0122]
[1741226579502,82.57305445,148.13,147.98,218.8122]
[1741226579800,20.0,148.1,147.99,18.64964886]
[1741226580003,20.0,148.08,147.99,18.64964886]
[1741226580209,1.77322839,148.07,148.0,0.28432314]
[1741226580396,21.77322839,148.07,148.0,0.28432314]
[1741226580604,20.0,148.06,147.97,201.99]
[1741226580910,20.0,148.02,147.97,120.69]
[1741226581102,20.0,148.0,147.9,81.3]
[1741226581304,1.77430543,147.99,147.87,6.1674]
[1741226581482,1.77430543,147.99,147.86,137.5303]
[1741226581686,0.28432314,147.96,147.82,87.68064235]
[1741226581890,1.7751529,147.95,147.82,131.77909895]
[1741226582086,0.28432314,148.03,147.87,19.21829514]
[1741226582307,82.57472281,148.04,147.93,0.28432314]
[1741226582308,1.77436017,148.02,147.93,0.28432314]
[1741226582526,20.0,148.02,147.95,0.14216157]
[1741226583008,20.0,148.0,147.93,0.14216157]
[1741226583209,18.64964886,148.03,147.93,0.14216157]
[1741226583210,21.77428455,147.99,147.93,0.14216157]
[1741226583588,21.77428455,147.99,147.89,0.28432314]
[1741226583589,21.77428455,147.99,147.9,0.14216157]
[1741226583787,80.8,148.02,147.91,18.64964886]
[1741226583788,1.7743081,148.02,147.91,18.64964886]
[1741226584009,1.7743081,148.02,147.94,0.14216157]
[1741226584192,1.77372318,148.04,147.96,18.933972]
[1741226585217,1.77372318,148.04,147.97,0.42648471]
[1741226585391,1.77334075,148.05,147.96,0.56864628]
[1741226585786,1.77334075,148.05,148.0,0.28432314]
[1741226585986,80.8,148.09,148.0,0.14216157]
[1741226585987,1.77357474,148.07,148.0,0.14216157]
[1741226586213,18.64964886,148.06,148.0,0.14216157]
[1741226586412,1.77350473,148.07,148.0,0.14216157]
[1741226586728,6.4948,148.1,148.0,0.14216157]
[1741226586915,6.4948,148.1,148.01,0.56864628]
[1741226587316,1.77284563,148.11,148.03,0.56864628]
[1741226587525,0.033,148.15,148.05,0.56864628]
[1741226587692,1.8053692,148.15,148.05,0.56864628]
[1741226587899,20.0,148.13,148.05,0.28432314]
[1741226588207,1.77273767,148.12,148.05,0.28432314]
[1741226588619,21.77273767,148.12,148.05,0.28432314]
[1741226588918,1.80576511,148.15,148.07,0.28432314]
[1741226589109,0.033,148.15,148.09,18.933972]
[1741226589314,0.033,148.15,148.11,0.14216157]
[1741226589507,0.033,148.15,148.14,0.14216157]
[1741226589715,0.033,148.15,148.14,0.28432314]
[1741226590118,0.033,148.15,148.14,19.21829514]
[1741226590307,0.033,148.15,148.14,0.56864628]
[1741226590513,0.033,148.21,148.15,18.64964886]
[1741226590711,0.033,148.21,148.16,0.56864628]
[1741226591032,0.033,148.21,148.16,0.14216157]
[1741226591198,0.033,148.21,148.14,0.56864628]
[1741226591402,0.033,148.21,148.16,0.14216157]
[1741226591931,0.033,148.21,148.17,0.14216157]
[1741226592505,0.033,148.21,148.15,0.14216157]
[1741226592706,1.80442585,148.21,148.15,0.14216157]
[1741226592934,0.033,148.21,148.18,0.14216157]
[1741226593131,0.033,148.21,148.18,0.28432314]
[1741226593429,0.033,148.21,148.18,0.14216157]
[1741226593633,0.033,148.21,148.15,0.14216157]
[1741226594142,0.033,148.21,148.16,0.14216157]
[1741226594306,0.033,148.21,148.15,134.5]
[1741226594508,0.033,148.21,148.16,0.28432314]
[1741226594702,0.033,148.21,148.15,134.5]
[1741226595030,1.80431929,148.21,148.13,7.72]
[1741226595211,20.0,148.2,148.13,7.72]
[1741226595538,20.0,148.18,148.13,7.72]
[1741226595711,20.0,148.18,148.09,81.3]
[1741226595913,0.033,148.21,148.14,18.64964886]
[1741226596118,0.033,148.21,148.19,0.14216157]
[1741226596611,0.033,148.21,148.16,223.52]
[1741226596612,0.033,148.21,148.17,0.14216157]
[1741226596808,20.033,148.21,148.16,7.72]
[1741226597039,1.7718113,148.2,148.11,81.3]
[1741226597218,20.0,148.19,148.08,7.7]
[1741226597543,1.77210213,148.18,148.08,7.7]
[1741226598041,99.733972,148.17,148.08,7.7]
[1741226598243,18.64964886,148.15,148.08,7.7]
[1741226598422,1.77273974,148.14,148.05,0.14216157]
[1741226598736,18.64964886,148.13,148.02,7.7]
[1741226598943,1.77291581,148.12,148.03,0.28432314]
[1741226599143,1.77291581,148.12,148.02,7.7]
[1741226599144,82.57291581,148.12,148.02,7.7]
[1741226599510,18.64964886,148.11,148.03,312.14216157]
[1741226599713,0.28432314,148.08,147.96,81.3]
[1741226599933,1.77351923,148.07,147.96,81.3]
[1741226600139,80.8,148.06,147.95,120.66]
[1741226600339,1.77354005,148.05,147.95,120.66]
[1741226600547,1.77354005,148.05,147.96,19.21829514]
[1741226600740,1.77354005,148.05,147.95,120.66]
[1741226601607,1.77354005,148.05,147.96,0.28432314]
[1741226601608,20.0,148.03,147.96,0.28432314]
[1741226601814,20.0,148.02,147.95,120.66]
[1741226602013,1.77378651,148.01,147.95,120.66]
[1741226602542,1.77378651,148.01,147.96,0.14216157]
[1741226602715,21.77378651,148.01,147.96,312.0]
[1741226602913,0.28432314,148.0,147.87,81.3]
[1741226603125,20.0,147.96,147.86,0.21324235]
[1741226603344,1.77482421,147.95,147.85,7.66]
[1741226603531,1.77482421,147.95,147.83,142.16]
[1741226603725,20.0,147.91,147.82,0.03]
[1741226603932,18.64964886,147.94,147.82,0.03]
[1741226603933,21.77539642,147.9,147.82,0.03]
[1741226604450,20.0,147.86,147.82,0.03]
[1741226604651,1.77601692,147.85,147.82,0.03]
[1741226604864,20.0,147.86,147.82,0.03]
[1741226605050,1.77576412,147.91,147.82,0.03]
[1741226605227,1.77576412,147.91,147.83,0.14216157]
[1741226605421,6.2055,147.93,147.83,0.28432314]
[1741226605422,1.77514161,147.92,147.83,0.28432314]
[1741226605647,20.0,147.9,147.83,0.28432314]
[1741226605850,1.77519627,147.89,147.87,0.14216157]
[1741226606050,20.0,147.9,147.87,0.14216157]
[1741226606336,20.0,147.9,147.86,312.03]
[1741226606529,1.77533551,147.89,147.86,0.03]
[1741226606793,20.0,147.87,147.86,0.03]
[1741226607357,1.7754547,147.91,147.86,0.03]
[1741226607536,20.0,147.9,147.86,0.03]
[1741226609436,7.98064784,147.93,147.87,0.14216157]
[1741226609632,6.2055,147.93,147.87,0.14216157]
[1741226610133,1.77485479,147.95,147.87,0.28432314]
[1741226610349,1.77485479,147.95,147.86,0.03]
[1741226610550,99.87613357,147.94,147.86,0.03]
[1741226610749,0.28432314,147.91,147.86,0.03]
[1741226610969,18.64964886,147.89,147.86,0.03]
[1741226611133,1.77567095,147.88,147.86,0.03]
[1741226611334,82.57567095,147.88,147.86,0.03]
[1741226611566,18.933972,147.87,147.82,0.03]
[1741226611774,82.57605412,147.86,147.82,0.03]
[1741226612760,80.8,147.86,147.82,0.03]
[1741226612961,80.8,147.86,147.85,0.14216157]
[1741226613153,20.0,147.88,147.85,0.14216157]
[1741226613455,20.0,147.86,147.82,0.03]
[1741226613663,21.77592784,147.85,147.82,0.03]
[1741226613868,20.0,147.85,147.82,0.03]
[1741226614231,20.0,147.83,147.82,0.03]
[1741226614464,100.8,147.83,147.73,7.56]
[1741226614632,20.0,147.79,147.71,2.9278]
[1741226614833,20.0,147.79,147.72,0.42648471]
[1741226615039,20.0,147.79,147.71,0.03]
[1741226615271,20.0,147.77,147.71,0.03]
[1741226615437,1.77684875,147.76,147.71,0.03]
[1741226615632,21.77684875,147.76,147.71,0.03]
[1741226615958,20.0,147.76,147.72,0.14216157]
[1741226616164,20.0,147.76,147.71,0.03]
[1741226616454,20.0,147.76,147.74,312.0]
[1741226617049,82.57679647,147.86,147.75,0.14216157]
[1741226617347,80.8,147.85,147.75,0.28432314]
[1741226617658,1.77612778,147.84,147.75,0.56864628]
[1741226617863,80.8,147.91,147.8,0.14216157]
[1741226618069,82.5754004,147.9,147.82,0.14216157]
[1741226618980,18.64964886,147.89,147.81,0.14216157]
[1741226619178,1.77584273,147.88,147.81,0.14216157]
[1741226619955,6.0218,147.92,147.83,44.38277974]
[1741226620283,6.3273,147.98,147.88,0.28432314]
[1741226620581,80.8,147.97,147.9,44.38277974]
[1741226620757,80.8,148.03,147.93,0.56864628]
[1741226620957,1.77380356,148.02,147.93,0.56864628]
[1741226621152,1.77380356,148.02,147.93,7.32854628]
[1741226621370,1.77361905,148.03,147.93,51.42700288]
[1741226621664,1.77361905,148.03,147.93,0.56864628]
[1741226621864,20.42326791,148.03,147.93,0.14216157]
[1741226622088,1.77361905,148.03,147.93,0.56864628]
[1741226622381,1.77361905,148.03,147.93,44.66710288]
[1741226622766,20.0,148.01,147.93,44.66710288]
[1741226622964,20.0,148.01,147.93,0.56864628]
[1741226623285,20.0,147.96,147.91,0.14216157]
[1741226623582,20.0,147.96,147.89,81.3]
[1741226623883,82.57453285,148.03,147.93,0.56864628]
[1741226624087,82.57453285,148.03,147.93,81.86864628]
[1741226624578,20.0,147.99,147.93,81.44216157]
[1741226624783,20.0,147.99,147.91,0.28432314]
[1741226624987,1.77425407,147.98,147.91,0.14216157]
[1741226625154,1.77425407,147.98,147.9,81.3]
[1741226625349,0.28432314,147.96,147.85,6.2399]
[1741226625583,1.77495292,147.96,147.85,139.5783566]
[1741226625954,1.77495292,147.96,147.85,95.4799]
[1741226626160,18.64964886,147.95,147.85,89.24]
[1741226626474,18.64964886,147.93,147.85,7.94]
[1741226626663,1.77539034,147.92,147.85,7.94]
[1741226626867,82.57539034,147.92,147.86,0.14216157]
[1741226627172,82.57539034,147.92,147.86,312.14216157]
[1741226627559,82.57539034,147.92,147.86,312.0]
[1741226627881,82.57539034,147.92,147.87,0.14216157]
[1741226628257,18.64964886,147.93,147.87,0.14216157]
[1741226628258,80.8,147.97,147.87,0.56864628]
[1741226628457,1.77449607,147.96,147.87,0.56864628]
[1741226628673,20.0,147.96,147.9,0.14216157]
[1741226628873,80.8,147.99,147.92,0.14216157]
[1741226629071,80.8,148.03,147.92,0.14216157]
[1741226629394,80.8,148.02,147.94,0.14216157]
[1741226629890,20.0,147.99,147.94,0.14216157]
[1741226630681,20.0,147.99,147.93,81.44216157]
[1741226630990,82.57420093,148.03,147.94,0.28432314]
[1741226631152,82.57420093,148.03,147.97,0.14216157]
[1741226631483,20.0,148.0,147.97,0.14216157]
[1741226631807,20.0,148.0,147.94,0.14216157]
[1741226632264,80.8,148.05,147.97,0.28432314]
[1741226632469,1.77356395,148.04,147.97,0.28432314]
[1741226632658,80.8,148.11,148.01,0.28432314]
[1741226632854,1.77297349,148.1,148.01,44.38277974]
[1741226633097,86.8595,148.15,148.03,0.28432314]
[1741226633288,1.77252051,148.14,148.05,0.28432314]
[1741226633662,80.8,148.15,148.07,0.28432314]
[1741226633663,1.77262415,148.15,148.07,0.28432314]
[1741226633868,80.833,148.17,148.08,0.28432314]
[1741226634068,0.033,148.17,148.11,0.28432314]
[1741226634764,0.033,148.17,148.15,0.14216157]
[1741226635397,0.033,148.17,148.14,312.0]
[1741226635907,1.77193901,148.16,148.07,0.14216157]
[1741226636071,20.0,148.12,148.03,91.9903]
[1741226636266,20.0,148.12,148.04,0.14216157]
[1741226636576,20.0,148.1,148.03,7.9]
[1741226636988,1.77297627,148.09,148.03,7.9]
[1741226637293,1.77297627,148.09,148.01,120.74]
[1741226637495,1.77313732,148.11,148.04,20.0]
[1741226637799,80.8,148.2,148.09,19.21829514]
[1741226638096,20.033,148.17,148.11,0.14216157]
[1741226638295,20.0,148.15,148.06,0.14216157]
[1741226638597,0.033,148.17,148.11,0.14216157]
[1741226638797,0.033,148.17,148.15,312.0]
[1741226639098,0.033,148.17,148.1,0.28432314]
[1741226639391,20.033,148.17,148.1,0.28432314]
[1741226639794,21.77201368,148.16,148.06,6.101]
[1741226639995,20.0,148.11,148.0,221.901]
[1741226640169,21.77291102,148.1,148.0,89.24]
[1741226640565,80.8,148.13,148.0,89.24]
[1741226640566,0.033,148.17,148.05,44.0984566]
[1741226640796,1.80533482,148.17,148.11,0.14216157]
[1741226640980,0.033,148.17,148.13,0.14216157]
[1741226641675,0.033,148.17,148.1,0.14216157]
[1741226641978,20.033,148.17,148.1,0.14216157]
[1741226642180,0.033,148.17,148.12,0.14216157]
[1741226642380,20.033,148.17,148.12,0.14216157]
[1741226642694,20.033,148.17,148.11,0.28432314]
[1741226642898,0.033,148.17,148.11,0.42648471]
[1741226643190,0.033,148.17,148.15,0.28432314]
[1741226644503,0.033,148.17,148.16,19.21829514]
[1741226644713,0.033,148.21,148.2,0.42648471]
[1741226645005,0.033,148.21,148.2,287.07675174]
[1741226645200,1.7104664,148.23,148.22,7.31534628]
[1741226645406,0.033,148.28,148.25,0.56864628]
[1741226645610,0.033,148.28,148.27,375.31675174]
[1741226645811,0.033,148.28,148.27,591.11675174]
[1741226646383,0.033,148.28,148.27,547.01829514]